[Event "*** Titled Tuesday Blitz"]
[Site "Chess.com"]
[Date "2021.03.02"]
[Round "4"]
[White "Kislov_Oleg"]
[Black "Chandradi"]
[Result "0-1"]
[WhiteElo "2497"]
[BlackElo "2344"]
[TimeControl "180+1"]
[EndTime "10:39:42 PST"]
[Termination "Chandradi won on time"]

1. e4 {[%clk 0:03:00.9]} 1... c5 {[%clk 0:02:59.8]} 2. Nf3 {[%clk 0:03:00.7]}
2... g6 {[%clk 0:02:59.7]} 3. c3 {[%clk 0:03:00.4]} 3... Nf6 {[%clk 0:02:59.3]}
4. e5 {[%clk 0:02:59]} 4... Nd5 {[%clk 0:02:59.6]} 5. d4 {[%clk 0:02:59.5]} 5...
cxd4 {[%clk 0:03:00.5]} 6. cxd4 {[%clk 0:03:00]} 6... Nc6 {[%clk 0:02:59.4]} 7.
Bc4 {[%clk 0:02:58]} 7... Nb6 {[%clk 0:02:58.9]} 8. Bb3 {[%clk 0:02:58.5]} 8...
d5 {[%clk 0:02:58.9]} 9. h3 {[%clk 0:02:39.2]} 9... Bg7 {[%clk 0:02:57.7]} 10.
O-O {[%clk 0:02:38.9]} 10... O-O {[%clk 0:02:57.9]} 11. Nc3 {[%clk 0:02:25]}
11... Bf5 {[%clk 0:02:52.2]} 12. a4 {[%clk 0:02:19.8]} 12... Na5 {[%clk
0:02:51.6]} 13. Ba2 {[%clk 0:02:17.2]} 13... Rc8 {[%clk 0:02:51.1]} 14. Bd2
{[%clk 0:02:10.2]} 14... Nac4 {[%clk 0:02:46]} 15. Bc1 {[%clk 0:02:01.4]} 15...
Qd7 {[%clk 0:02:37.6]} 16. b3 {[%clk 0:01:57.1]} 16... Nxe5 {[%clk 0:02:24.7]}
17. Nxe5 {[%clk 0:01:50.5]} 17... Bxe5 {[%clk 0:02:24.1]} 18. Nxd5 {[%clk
0:01:28.9]} 18... Qxd5 {[%clk 0:02:22.2]} 19. dxe5 {[%clk 0:01:28.7]} 19... Qxe5
{[%clk 0:02:19.7]} 20. Bh6 {[%clk 0:01:28.6]} 20... Rfd8 {[%clk 0:02:19.4]} 21.
Qf3 {[%clk 0:01:23.5]} 21... Nd5 {[%clk 0:02:02.7]} 22. Rfe1 {[%clk 0:01:19.1]}
22... Qf6 {[%clk 0:02:00.9]} 23. g4 {[%clk 0:00:59.5]} 23... Be6 {[%clk
0:01:50.4]} 24. Qxf6 {[%clk 0:00:47.8]} 24... Nxf6 {[%clk 0:01:50.7]} 25. b4
{[%clk 0:00:46.3]} 25... Bxa2 {[%clk 0:01:45]} 26. Rxa2 {[%clk 0:00:47.2]} 26...
Nd5 {[%clk 0:01:40.3]} 27. b5 {[%clk 0:00:35.4]} 27... f6 {[%clk 0:01:37.4]} 28.
Bc1 {[%clk 0:00:27.6]} 28... Kf7 {[%clk 0:01:35.8]} 29. Rae2 {[%clk 0:00:24.3]}
29... e5 {[%clk 0:01:35]} 30. g5 {[%clk 0:00:22.1]} 30... Nc3 {[%clk 0:01:01.2]}
31. Re3 {[%clk 0:00:22.1]} 31... Rd1 {[%clk 0:01:00.3]} 32. gxf6 {[%clk
0:00:20.3]} 32... Kxf6 {[%clk 0:00:52.5]} 33. Rxe5 {[%clk 0:00:17.6]} 33... Rxc1
{[%clk 0:00:50]} 34. Re6+ {[%clk 0:00:16]} 34... Kf7 {[%clk 0:00:50.2]} 35. Re7+
{[%clk 0:00:13.8]} 35... Kf6 {[%clk 0:00:47.3]} 36. Re6+ {[%clk 0:00:12]} 36...
Kf5 {[%clk 0:00:46.2]} 37. Re5+ {[%clk 0:00:12]} 37... Kf4 {[%clk 0:00:46.4]}
38. Kg2 {[%clk 0:00:07.5]} 38... Rxe1 {[%clk 0:00:43.3]} 39. Rxe1 {[%clk
0:00:08.4]} 39... Ne4 {[%clk 0:00:42.5]} 40. Rd1 {[%clk 0:00:07.5]} 40... Rc2
{[%clk 0:00:42]} 41. Rd7 {[%clk 0:00:07.6]} 41... Rxf2+ {[%clk 0:00:40.7]} 42.
Kg1 {[%clk 0:00:08.2]} 42... Kg3 {[%clk 0:00:39.4]} 43. Rd3+ {[%clk 0:00:07.6]}
43... Rf3 {[%clk 0:00:38.7]} 44. Rd7 {[%clk 0:00:05.3]} 44... Nf2 {[%clk
0:00:37.1]} 45. Rxh7 {[%clk 0:00:01.1]} 45... Nxh3+ {[%clk 0:00:36.6]} 0-1

[Event "*** Titled Tuesday Blitz"]
[Site "Chess.com"]
[Date "2021.03.02"]
[Round "4"]
[White "akanga001"]
[Black "Michaelson_11"]
[Result "0-1"]
[WhiteElo "1953"]
[BlackElo "2275"]
[TimeControl "180+1"]
[EndTime "10:39:42 PST"]
[Termination "Michaelson_11 won by resignation"]

1. d4 {[%clk 0:03:00.9]} 1... Nf6 {[%clk 0:02:57.6]} 2. Nf3 {[%clk 0:02:58.9]}
2... g6 {[%clk 0:02:58.5]} 3. Bg5 {[%clk 0:02:57.8]} 3... Bg7 {[%clk 0:02:59.4]}
4. e3 {[%clk 0:02:57.3]} 4... d6 {[%clk 0:02:59]} 5. Nbd2 {[%clk 0:02:56.7]}
5... O-O {[%clk 0:02:59.5]} 6. Bd3 {[%clk 0:02:56]} 6... c5 {[%clk 0:02:57.9]}
7. c3 {[%clk 0:02:54.8]} 7... Nc6 {[%clk 0:02:58]} 8. O-O {[%clk 0:02:54]} 8...
e5 {[%clk 0:02:58.1]} 9. d5 {[%clk 0:02:46.9]} 9... Ne7 {[%clk 0:02:52.5]} 10.
e4 {[%clk 0:02:45.5]} 10... h6 {[%clk 0:02:44.8]} 11. Bh4 {[%clk 0:02:44.6]}
11... Bg4 {[%clk 0:02:39]} 12. Re1 {[%clk 0:02:42.6]} 12... g5 {[%clk
0:02:34.6]} 13. Bg3 {[%clk 0:02:41.7]} 13... Nh5 {[%clk 0:02:33.4]} 14. h3
{[%clk 0:02:38.9]} 14... Nxg3 {[%clk 0:02:26.9]} 15. fxg3 {[%clk 0:02:38]} 15...
Bh5 {[%clk 0:02:21.6]} 16. g4 {[%clk 0:02:37.4]} 16... Bg6 {[%clk 0:02:16.6]}
17. a4 {[%clk 0:02:36.1]} 17... f6 {[%clk 0:02:09.8]} 18. Nc4 {[%clk 0:02:34.2]}
18... h5 {[%clk 0:02:04.1]} 19. Nfd2 {[%clk 0:02:14.2]} 19... Qd7 {[%clk
0:01:47.3]} 20. Be2 {[%clk 0:02:05.4]} 20... hxg4 {[%clk 0:01:40.6]} 21. Bxg4
{[%clk 0:02:04.2]} 21... f5 {[%clk 0:01:38.8]} 22. exf5 {[%clk 0:02:01.2]} 22...
Bxf5 {[%clk 0:01:34.9]} 23. Ne3 {[%clk 0:01:57.8]} 23... Bxg4 {[%clk 0:01:33]}
24. hxg4 {[%clk 0:01:50.8]} 24... Rf4 {[%clk 0:01:25.6]} 25. g3 {[%clk
0:01:46.5]} 25... Rf7 {[%clk 0:01:11]} 26. Qe2 {[%clk 0:01:41.4]} 26... Raf8
{[%clk 0:01:07.6]} 27. Rf1 {[%clk 0:01:38.8]} 27... Ng6 {[%clk 0:00:44.5]} 28.
Rxf7 {[%clk 0:01:36.8]} 28... Qxf7 {[%clk 0:00:40.7]} 29. Ndc4 {[%clk
0:01:32.1]} 29... Nf4 {[%clk 0:00:18.7]} 30. gxf4 {[%clk 0:01:21.8]} 30... gxf4
{[%clk 0:00:19.6]} 31. Nf5 {[%clk 0:01:20.9]} 31... Qxd5 {[%clk 0:00:17]} 32.
Nxg7 {[%clk 0:01:16.2]} 32... Kxg7 {[%clk 0:00:17.9]} 33. Rd1 {[%clk 0:01:10.4]}
33... f3 {[%clk 0:00:17.9]} 34. Qf1 {[%clk 0:00:20.3]} 34... f2+ {[%clk
0:00:16.5]} 35. Kh2 {[%clk 0:00:20.5]} 35... Qf3 {[%clk 0:00:16.7]} 36. Nd2
{[%clk 0:00:15.1]} 36... Rh8+ {[%clk 0:00:16.4]} 0-1

[Event "*** Titled Tuesday Blitz"]
[Site "Chess.com"]
[Date "2021.03.02"]
[Round "4"]
[White "vugarrasulov"]
[Black "Sibelephant"]
[Result "0-1"]
[WhiteElo "2791"]
[BlackElo "3055"]
[TimeControl "180+1"]
[EndTime "10:39:43 PST"]
[Termination "Sibelephant won by checkmate"]

1. d4 {[%clk 0:03:00.9]} 1... d5 {[%clk 0:02:59.8]} 2. c4 {[%clk 0:03:01.3]}
2... e6 {[%clk 0:03:00.1]} 3. Nf3 {[%clk 0:03:01.5]} 3... a6 {[%clk 0:03:00.2]}
4. e3 {[%clk 0:02:59.8]} 4... Nf6 {[%clk 0:02:59.7]} 5. Bd3 {[%clk 0:02:58.7]}
5... dxc4 {[%clk 0:02:54.8]} 6. Bxc4 {[%clk 0:02:59.6]} 6... c5 {[%clk
0:02:46.6]} 7. dxc5 {[%clk 0:02:55.2]} 7... Qxd1+ {[%clk 0:02:41.8]} 8. Kxd1
{[%clk 0:02:56.1]} 8... Bxc5 {[%clk 0:02:41.3]} 9. Ke2 {[%clk 0:02:53.9]} 9...
Ke7 {[%clk 0:02:41.3]} 10. a3 {[%clk 0:02:44]} 10... Nbd7 {[%clk 0:02:32.7]} 11.
b4 {[%clk 0:02:42.5]} 11... Bd6 {[%clk 0:02:32.9]} 12. Bb2 {[%clk 0:02:42.7]}
12... a5 {[%clk 0:02:33.4]} 13. b5 {[%clk 0:02:27.5]} 13... Nc5 {[%clk
0:02:00.2]} 14. Rd1 {[%clk 0:02:23.6]} 14... Bd7 {[%clk 0:01:36]} 15. Be5 {[%clk
0:01:59.4]} 15... Bxe5 {[%clk 0:01:34.5]} 16. Nxe5 {[%clk 0:02:00.3]} 16... Rhc8
{[%clk 0:01:34.7]} 17. Nd2 {[%clk 0:01:56.1]} 17... Be8 {[%clk 0:01:33.5]} 18.
f3 {[%clk 0:01:50.2]} 18... Na4 {[%clk 0:01:29.7]} 19. Rdc1 {[%clk 0:01:49.3]}
19... Rc5 {[%clk 0:01:13.4]} 20. Nd3 {[%clk 0:01:38.3]} 20... Rc7 {[%clk
0:01:11]} 21. e4 {[%clk 0:00:49]} 21... Rac8 {[%clk 0:01:10.7]} 22. Rab1 {[%clk
0:00:42.7]} 22... Nd7 {[%clk 0:01:06.3]} 23. Ke3 {[%clk 0:00:39.8]} 23... Ndb6
{[%clk 0:01:05.9]} 24. Bb3 {[%clk 0:00:33.4]} 24... Nc3 {[%clk 0:01:05]} 25. Ra1
{[%clk 0:00:30.7]} 25... Bxb5 {[%clk 0:01:03.4]} 26. Nf4 {[%clk 0:00:18.5]}
26... g5 {[%clk 0:00:54.2]} 27. Nd3 {[%clk 0:00:18.7]} 27... f5 {[%clk
0:00:45.4]} 28. exf5 {[%clk 0:00:17.2]} 28... exf5 {[%clk 0:00:45.7]} 29. f4
{[%clk 0:00:16.9]} 29... Rd8 {[%clk 0:00:38.6]} 30. Bc2 {[%clk 0:00:05.5]} 30...
Ncd5+ {[%clk 0:00:33.2]} 31. Kf2 {[%clk 0:00:03.4]} 31... Bxd3 {[%clk
0:00:30.2]} 32. Bxd3 {[%clk 0:00:04.3]} 32... Rxc1 {[%clk 0:00:30.5]} 33. Rxc1
{[%clk 0:00:05.2]} 33... Nxf4 {[%clk 0:00:31.2]} 34. Rc7+ {[%clk 0:00:05.8]}
34... Kf6 {[%clk 0:00:29.8]} 35. Rxb7 {[%clk 0:00:03]} 35... Nxd3+ {[%clk
0:00:29.6]} 36. Ke3 {[%clk 0:00:03.7]} 36... f4+ {[%clk 0:00:26.5]} 37. Kf3
{[%clk 0:00:01.9]} 37... Ne5+ {[%clk 0:00:26.8]} 38. Ke2 {[%clk 0:00:02.5]}
38... Nd5 {[%clk 0:00:26.5]} 39. Ne4+ {[%clk 0:00:02.7]} 39... Kf5 {[%clk
0:00:27.2]} 40. Nc5 {[%clk 0:00:03]} 40... Nc3+ {[%clk 0:00:27.6]} 41. Kf1
{[%clk 0:00:01.9]} 41... Rd1+ {[%clk 0:00:27.1]} 42. Kf2 {[%clk 0:00:02.5]}
42... Ng4+ {[%clk 0:00:27.3]} 43. Kf3 {[%clk 0:00:01.7]} 43... Rf1# {[%clk
0:00:28]} 0-1

[Event "*** Titled Tuesday Blitz"]
[Site "Chess.com"]
[Date "2021.03.02"]
[Round "4"]
[White "lucachess49"]
[Black "PawnEatingZombie"]
[Result "1-0"]
[WhiteElo "2410"]
[BlackElo "2194"]
[TimeControl "180+1"]
[EndTime "10:39:46 PST"]
[Termination "lucachess49 won on time"]

1. d4 {[%clk 0:03:00.9]} 1... d5 {[%clk 0:02:59.5]} 2. c4 {[%clk 0:02:55.9]}
2... e6 {[%clk 0:02:59.4]} 3. Nc3 {[%clk 0:02:49.1]} 3... Bb4 {[%clk 0:02:58.9]}
4. Nf3 {[%clk 0:02:46.8]} 4... dxc4 {[%clk 0:02:58.2]} 5. e3 {[%clk 0:02:43.8]}
5... b5 {[%clk 0:02:57.9]} 6. a4 {[%clk 0:02:43.8]} 6... c6 {[%clk 0:02:56.3]}
7. Bd2 {[%clk 0:02:43.8]} 7... a5 {[%clk 0:02:54]} 8. axb5 {[%clk 0:02:41.2]}
8... Bxc3 {[%clk 0:02:52.7]} 9. Bxc3 {[%clk 0:02:41.2]} 9... cxb5 {[%clk
0:02:52.6]} 10. b3 {[%clk 0:02:42.1]} 10... Bb7 {[%clk 0:02:52.3]} 11. bxc4
{[%clk 0:02:42.1]} 11... b4 {[%clk 0:02:52.6]} 12. Bb2 {[%clk 0:02:42.4]} 12...
Nf6 {[%clk 0:02:52.6]} 13. Bd3 {[%clk 0:02:31.9]} 13... O-O {[%clk 0:02:48.3]}
14. O-O {[%clk 0:02:28.9]} 14... Nbd7 {[%clk 0:02:48.1]} 15. Nd2 {[%clk
0:02:27.7]} 15... Qc7 {[%clk 0:02:43.4]} 16. f4 {[%clk 0:02:24.2]} 16... a4
{[%clk 0:02:40.4]} 17. Rb1 {[%clk 0:01:59.6]} 17... Rfd8 {[%clk 0:02:14.5]} 18.
Qe2 {[%clk 0:01:43.6]} 18... b3 {[%clk 0:01:18.5]} 19. Ba3 {[%clk 0:01:42.7]}
19... Ba6 {[%clk 0:01:16.1]} 20. e4 {[%clk 0:01:33.8]} 20... Qa7 {[%clk
0:01:05.1]} 21. Nf3 {[%clk 0:01:30.7]} 21... e5 {[%clk 0:00:55.1]} 22. fxe5
{[%clk 0:01:29.8]} 22... Nxe5 {[%clk 0:00:50.9]} 23. Bc5 {[%clk 0:01:28.7]}
23... Nxf3+ {[%clk 0:00:47.9]} 24. Rxf3 {[%clk 0:00:57.7]} 24... Qd7 {[%clk
0:00:43.9]} 25. e5 {[%clk 0:00:51.4]} 25... Ne8 {[%clk 0:00:43.4]} 26. Bxh7+
{[%clk 0:00:38.8]} 26... Kxh7 {[%clk 0:00:40.4]} 27. Rh3+ {[%clk 0:00:39]} 27...
Kg8 {[%clk 0:00:32.6]} 28. Qh5 {[%clk 0:00:35.4]} 28... Qxh3 {[%clk 0:00:32.4]}
29. gxh3 {[%clk 0:00:33.6]} 29... Bxc4 {[%clk 0:00:30.6]} 30. Re1 {[%clk
0:00:10.4]} 30... a3 {[%clk 0:00:27.2]} 31. Qh4 {[%clk 0:00:05.4]} 31... a2
{[%clk 0:00:15.3]} 32. Kf2 {[%clk 0:00:05.4]} 32... b2 {[%clk 0:00:10]} 33. Qe7
{[%clk 0:00:04.5]} 33... Nf6 {[%clk 0:00:04.5]} 34. exf6 {[%clk 0:00:03.9]}
34... b1=Q {[%clk 0:00:04.2]} 35. Re3 {[%clk 0:00:03.2]} 35... a1=Q {[%clk
0:00:02.9]} 36. fxg7 {[%clk 0:00:01.8]} 36... Qf1+ {[%clk 0:00:01.5]} 37. Kg3
{[%clk 0:00:02.7]} 1-0

[Event "*** Titled Tuesday Blitz"]
[Site "Chess.com"]
[Date "2021.03.02"]
[Round "4"]
[White "Nuvas"]
[Black "Angry_Twin"]
[Result "0-1"]
[WhiteElo "2542"]
[BlackElo "2892"]
[TimeControl "180+1"]
[EndTime "10:39:47 PST"]
[Termination "Angry_Twin won by resignation"]

1. d4 {[%clk 0:03:00.9]} 1... Nf6 {[%clk 0:02:49.1]} 2. c4 {[%clk 0:03:01.5]}
2... e6 {[%clk 0:02:48.8]} 3. Nc3 {[%clk 0:03:01.9]} 3... Bb4 {[%clk 0:02:48.6]}
4. Qc2 {[%clk 0:03:02.6]} 4... d5 {[%clk 0:02:48.6]} 5. cxd5 {[%clk 0:03:02.4]}
5... exd5 {[%clk 0:02:49.5]} 6. Bg5 {[%clk 0:03:02.9]} 6... h6 {[%clk
0:02:49.8]} 7. Bh4 {[%clk 0:03:03.3]} 7... Nc6 {[%clk 0:02:50]} 8. e3 {[%clk
0:03:01.6]} 8... g5 {[%clk 0:02:50.4]} 9. Bg3 {[%clk 0:03:01.4]} 9... h5 {[%clk
0:02:51]} 10. h3 {[%clk 0:02:41.4]} 10... Ne4 {[%clk 0:02:49.3]} 11. Bh2 {[%clk
0:02:40.4]} 11... Bf5 {[%clk 0:02:41.8]} 12. Bd3 {[%clk 0:02:40.4]} 12... Qd7
{[%clk 0:02:36.4]} 13. Ne2 {[%clk 0:02:38.2]} 13... O-O-O {[%clk 0:02:32.5]} 14.
a3 {[%clk 0:02:29.4]} 14... Nxc3 {[%clk 0:02:05.3]} 15. Nxc3 {[%clk 0:02:03.5]}
15... Bxd3 {[%clk 0:02:02.1]} 16. Qxd3 {[%clk 0:02:02.9]} 16... Bd6 {[%clk
0:01:56]} 17. Bxd6 {[%clk 0:01:56.1]} 17... Qxd6 {[%clk 0:01:56.9]} 18. Qf5+
{[%clk 0:01:44.3]} 18... Qe6 {[%clk 0:01:56.8]} 19. Qxe6+ {[%clk 0:01:36.6]}
19... fxe6 {[%clk 0:01:57.7]} 20. Ke2 {[%clk 0:01:30]} 20... e5 {[%clk
0:01:57.3]} 21. dxe5 {[%clk 0:01:23.9]} 21... Nxe5 {[%clk 0:01:58.2]} 22. Rad1
{[%clk 0:01:20.9]} 22... c6 {[%clk 0:01:58.4]} 23. b3 {[%clk 0:01:14.3]} 23...
Rde8 {[%clk 0:01:56.6]} 24. f3 {[%clk 0:00:56.9]} 24... Rhf8 {[%clk 0:01:56.1]}
25. Kf2 {[%clk 0:00:53.9]} 25... Ng6 {[%clk 0:01:49]} 26. Rhe1 {[%clk
0:00:52.6]} 26... g4 {[%clk 0:01:40.4]} 27. hxg4 {[%clk 0:00:51.2]} 27... hxg4
{[%clk 0:01:41.3]} 28. f4 {[%clk 0:00:51.7]} 28... Nh4 {[%clk 0:01:39.7]} 29.
Ne2 {[%clk 0:00:34.7]} 29... Nf5 {[%clk 0:01:39.3]} 30. Nd4 {[%clk 0:00:35]}
30... Nd6 {[%clk 0:01:39.2]} 31. Kg3 {[%clk 0:00:29.7]} 31... Ne4+ {[%clk
0:01:37.1]} 32. Kh2 {[%clk 0:00:26.1]} 32... Rh8+ {[%clk 0:01:21.1]} 33. Kg1
{[%clk 0:00:26]} 33... Re7 {[%clk 0:01:21.7]} 34. Kf1 {[%clk 0:00:20.8]} 34...
Rh2 {[%clk 0:01:21.6]} 35. Nf5 {[%clk 0:00:18.7]} 35... Rf7 {[%clk 0:01:14.2]}
36. Kg1 {[%clk 0:00:11.8]} 36... Rh5 {[%clk 0:01:04.6]} 37. Nd4 {[%clk
0:00:09.8]} 37... Rfh7 {[%clk 0:01:04.4]} 38. Kf1 {[%clk 0:00:10.4]} 38... Rh2
{[%clk 0:01:02.4]} 39. Rc1 {[%clk 0:00:08.8]} 39... Nd2+ {[%clk 0:00:58.9]} 40.
Ke2 {[%clk 0:00:08.7]} 40... Rxg2+ {[%clk 0:00:58.8]} 41. Kd3 {[%clk 0:00:09.2]}
41... Ne4 {[%clk 0:00:59.5]} 42. Re2 {[%clk 0:00:08.4]} 42... Rg3 {[%clk
0:00:54]} 43. b4 {[%clk 0:00:07.6]} 43... Kd7 {[%clk 0:00:53]} 44. Nf5 {[%clk
0:00:05.9]} 44... Rgh3 {[%clk 0:00:49.7]} 45. Rg1 {[%clk 0:00:06.4]} 45... g3
{[%clk 0:00:49.8]} 46. Reg2 {[%clk 0:00:05.8]} 46... Rh2 {[%clk 0:00:42.9]} 47.
Ke2 {[%clk 0:00:06.1]} 47... Ke6 {[%clk 0:00:37]} 48. Kf3 {[%clk 0:00:06.3]}
48... Kxf5 {[%clk 0:00:36.7]} 0-1

[Event "*** Titled Tuesday Blitz"]
[Site "Chess.com"]
[Date "2021.03.02"]
[Round "4"]
[White "anon102030"]
[Black "lagedema"]
[Result "1/2-1/2"]
[WhiteElo "2701"]
[BlackElo "2514"]
[TimeControl "180+1"]
[EndTime "10:39:47 PST"]
[Termination "Game drawn by repetition"]

1. e4 {[%clk 0:03:00.9]} 1... c6 {[%clk 0:02:59.8]} 2. d3 {[%clk 0:03:00.6]}
2... d5 {[%clk 0:03:00.7]} 3. Nd2 {[%clk 0:03:01.2]} 3... e5 {[%clk 0:03:00.5]}
4. g3 {[%clk 0:03:00.8]} 4... Nf6 {[%clk 0:02:58.3]} 5. Bg2 {[%clk 0:03:00.6]}
5... Bd6 {[%clk 0:02:58.9]} 6. Ngf3 {[%clk 0:03:00.3]} 6... O-O {[%clk
0:02:59.4]} 7. O-O {[%clk 0:03:00.5]} 7... Re8 {[%clk 0:02:59.9]} 8. b3 {[%clk
0:03:00.8]} 8... Nbd7 {[%clk 0:02:58.5]} 9. Bb2 {[%clk 0:03:01.3]} 9... Nf8
{[%clk 0:02:58.1]} 10. Re1 {[%clk 0:03:00.3]} 10... Ng6 {[%clk 0:02:58.1]} 11.
h3 {[%clk 0:02:58.7]} 11... a5 {[%clk 0:02:56.7]} 12. a4 {[%clk 0:02:57.7]}
12... d4 {[%clk 0:02:53.6]} 13. Rf1 {[%clk 0:02:50.8]} 13... h6 {[%clk
0:02:45.4]} 14. Kh2 {[%clk 0:02:51]} 14... b5 {[%clk 0:01:59.5]} 15. Ng1 {[%clk
0:02:48]} 15... Bd7 {[%clk 0:01:42.5]} 16. Ne2 {[%clk 0:02:41.4]} 16... Qc7
{[%clk 0:01:42.7]} 17. Bc1 {[%clk 0:02:36.5]} 17... h5 {[%clk 0:01:32]} 18. Kh1
{[%clk 0:02:35]} 18... h4 {[%clk 0:01:31.8]} 19. g4 {[%clk 0:02:30.5]} 19... Nh7
{[%clk 0:01:30.5]} 20. f4 {[%clk 0:02:24.8]} 20... Nxf4 {[%clk 0:01:23.8]} 21.
Nxf4 {[%clk 0:02:23.9]} 21... exf4 {[%clk 0:01:24.7]} 22. Nf3 {[%clk 0:02:24]}
22... g5 {[%clk 0:01:24.2]} 23. Nxd4 {[%clk 0:02:22.8]} 23... Be5 {[%clk
0:01:24.1]} 24. c3 {[%clk 0:02:20]} 24... b4 {[%clk 0:01:20.2]} 25. Bb2 {[%clk
0:02:12.4]} 25... c5 {[%clk 0:01:19.5]} 26. Ne2 {[%clk 0:02:11.2]} 26... Rad8
{[%clk 0:01:16.5]} 27. d4 {[%clk 0:01:56]} 27... bxc3 {[%clk 0:01:13.2]} 28.
Nxc3 {[%clk 0:01:45.3]} 28... Bxd4 {[%clk 0:01:07.9]} 29. Nd5 {[%clk 0:01:43.6]}
29... Qe5 {[%clk 0:01:08.1]} 30. Bxd4 {[%clk 0:01:40.9]} 30... cxd4 {[%clk
0:01:09]} 31. Qd2 {[%clk 0:01:33.1]} 31... Be6 {[%clk 0:01:08.4]} 32. Qxa5
{[%clk 0:01:31.6]} 32... Bxd5 {[%clk 0:01:01]} 33. exd5 {[%clk 0:01:32.5]} 33...
d3 {[%clk 0:01:01.3]} 34. Rad1 {[%clk 0:01:17.9]} 34... Nf6 {[%clk 0:00:56.3]}
35. Rxd3 {[%clk 0:01:15]} 35... Ne4 {[%clk 0:00:49.4]} 36. Bxe4 {[%clk
0:01:07.2]} 36... Qxe4+ {[%clk 0:00:48.8]} 37. Rff3 {[%clk 0:01:08.1]} 37... Rc8
{[%clk 0:00:42.5]} 38. Qd2 {[%clk 0:01:04.8]} 38... Re5 {[%clk 0:00:33.4]} 39.
d6 {[%clk 0:01:02.7]} 39... Rd5 {[%clk 0:00:33.7]} 40. d7 {[%clk 0:00:42.1]}
40... Rxd7 {[%clk 0:00:27.7]} 41. Kg2 {[%clk 0:00:25.4]} 41... Rdc7 {[%clk
0:00:22.4]} 42. Rd8+ {[%clk 0:00:20.2]} 42... Kh7 {[%clk 0:00:21.9]} 43. Rxc8
{[%clk 0:00:19.9]} 43... Rxc8 {[%clk 0:00:20.4]} 44. Qd3 {[%clk 0:00:20.5]}
44... Rc2+ {[%clk 0:00:20.2]} 45. Kf1 {[%clk 0:00:20.5]} 45... Rc1+ {[%clk
0:00:20.2]} 46. Kf2 {[%clk 0:00:18.6]} 46... Rc2+ {[%clk 0:00:19.8]} 47. Kg1
{[%clk 0:00:17]} 47... Rc1+ {[%clk 0:00:19.9]} 48. Kf2 {[%clk 0:00:13.2]} 48...
Rc2+ {[%clk 0:00:19.9]} 49. Kf1 {[%clk 0:00:13.7]} 49... Rc1+ {[%clk 0:00:19.8]}
50. Kf2 {[%clk 0:00:14.3]} 1/2-1/2

[Event "*** Titled Tuesday Blitz"]
[Site "Chess.com"]
[Date "2021.03.02"]
[Round "4"]
[White "Godzillator"]
[Black "shaheus"]
[Result "1-0"]
[WhiteElo "2298"]
[BlackElo "2434"]
[TimeControl "180+1"]
[EndTime "10:39:47 PST"]
[Termination "Godzillator won on time"]

1. d4 {[%clk 0:03:00.9]} 1... Nf6 {[%clk 0:02:59.1]} 2. c4 {[%clk 0:03:01.2]}
2... g6 {[%clk 0:02:59.5]} 3. Nc3 {[%clk 0:03:01.6]} 3... Bg7 {[%clk 0:02:59.9]}
4. e4 {[%clk 0:03:02]} 4... d6 {[%clk 0:03:00.3]} 5. Be2 {[%clk 0:03:02.5]} 5...
O-O {[%clk 0:02:56.8]} 6. Bg5 {[%clk 0:03:02.9]} 6... c6 {[%clk 0:02:55.6]} 7.
Qd2 {[%clk 0:03:02.3]} 7... a6 {[%clk 0:02:56]} 8. a4 {[%clk 0:03:02.5]} 8... a5
{[%clk 0:02:55.8]} 9. Rd1 {[%clk 0:03:02.4]} 9... Qb6 {[%clk 0:02:50]} 10. h3
{[%clk 0:02:44.5]} 10... e5 {[%clk 0:02:42.6]} 11. d5 {[%clk 0:02:42.5]} 11...
Re8 {[%clk 0:02:29]} 12. Be3 {[%clk 0:02:37.1]} 12... c5 {[%clk 0:02:11.6]} 13.
f3 {[%clk 0:02:34.5]} 13... Qd8 {[%clk 0:02:06.7]} 14. Nb5 {[%clk 0:02:34.3]}
14... Nh5 {[%clk 0:02:02.8]} 15. g4 {[%clk 0:02:25.4]} 15... Nf4 {[%clk
0:01:36]} 16. Bd3 {[%clk 0:02:23.9]} 16... Bh6 {[%clk 0:01:12.1]} 17. Kf1 {[%clk
0:02:12.9]} 17... Qh4 {[%clk 0:01:01.7]} 18. Bf2 {[%clk 0:01:58.6]} 18... Qe7
{[%clk 0:00:59.3]} 19. Ne2 {[%clk 0:01:50.5]} 19... Na6 {[%clk 0:00:40.7]} 20.
Be3 {[%clk 0:01:41.6]} 20... Nb4 {[%clk 0:00:28]} 21. Bb1 {[%clk 0:01:40.9]}
21... Qh4 {[%clk 0:00:22.1]} 22. Bf2 {[%clk 0:01:37.7]} 22... Qf6 {[%clk
0:00:20.6]} 23. h4 {[%clk 0:01:27.7]} 23... Qe7 {[%clk 0:00:16.1]} 24. g5 {[%clk
0:01:25.4]} 24... Bg7 {[%clk 0:00:16.2]} 25. Nxf4 {[%clk 0:01:24.2]} 25... exf4
{[%clk 0:00:16.1]} 26. b3 {[%clk 0:01:21]} 26... Be5 {[%clk 0:00:15.6]} 27. Bd3
{[%clk 0:01:10.9]} 27... Rd8 {[%clk 0:00:15.4]} 28. Be2 {[%clk 0:01:11]} 28...
Bd7 {[%clk 0:00:15.5]} 29. Kg2 {[%clk 0:01:04.3]} 29... Bxb5 {[%clk 0:00:14.9]}
30. cxb5 {[%clk 0:01:02.4]} 30... b6 {[%clk 0:00:15]} 31. Rdg1 {[%clk
0:00:56.7]} 31... Rf8 {[%clk 0:00:14.9]} 32. Kf1 {[%clk 0:00:56.6]} 32... f6
{[%clk 0:00:15.1]} 33. gxf6 {[%clk 0:00:55.5]} 33... Rxf6 {[%clk 0:00:14.9]} 34.
h5 {[%clk 0:00:54.5]} 34... Kg7 {[%clk 0:00:14.7]} 35. Bh4 {[%clk 0:00:53.9]}
35... Qf7 {[%clk 0:00:11.2]} 36. Bxf6+ {[%clk 0:00:53.5]} 36... Qxf6 {[%clk
0:00:11.4]} 37. hxg6 {[%clk 0:00:53.5]} 37... hxg6 {[%clk 0:00:11.5]} 38. Bd1
{[%clk 0:00:45.6]} 38... Bd4 {[%clk 0:00:10.1]} 39. Rg4 {[%clk 0:00:44.2]} 39...
Rh8 {[%clk 0:00:07.9]} 40. Rxh8 {[%clk 0:00:41.1]} 40... Kxh8 {[%clk 0:00:07.9]}
41. Qg2 {[%clk 0:00:41.4]} 41... Kg7 {[%clk 0:00:07.8]} 42. Qh3 {[%clk
0:00:39.3]} 42... Be3 {[%clk 0:00:07.2]} 43. Rh4 {[%clk 0:00:37.8]} 43... Qg5
{[%clk 0:00:04.3]} 44. Qd7+ {[%clk 0:00:36.1]} 44... Kg8 {[%clk 0:00:01.4]} 45.
Qh7+ {[%clk 0:00:35.2]} 45... Kf8 {[%clk 0:00:01.1]} 46. Qh8+ {[%clk 0:00:35.5]}
1-0